bitfinex/quotes_SOLUSD_20240926
["timestamp","ask_amount","ask_price","bid_price","bid_amount"]
[1727376638177,22.99856866,156.61,156.55,12.5600538]
[1727376639053,21.8861,156.61,156.57,12.5600538]
[1727376639353,3.3448185,156.64,156.59,12.5600538]
[1727376639567,23.020747,156.65,156.61,12.5600538]
[1727376639758,1.59634752,156.64,156.61,12.5600538]
[1727376640376,1.59634752,156.64,156.52,15.7424]
[1727376640377,1.59634752,156.64,156.58,20.0]
[1727376640851,0.25098,156.64,156.58,20.0]
[1727376641353,1.84735116,156.64,156.58,20.0]
[1727376641856,0.25098,156.64,156.58,20.0]
[1727376642655,1.84734956,156.64,156.58,20.0]
[1727376646613,1.84734956,156.64,156.56,20.0]
[1727376647460,24.027864,156.64,156.56,20.0]
[1727376647777,0.25098,156.62,156.56,20.0]
[1727376648174,0.25098,156.63,156.56,20.0]
[1727376648756,1.59660127,156.62,156.56,20.0]
[1727376649162,1.59660127,156.62,156.53,39.60551801]
[1727376649163,0.25098,156.61,156.53,39.60551801]
[1727376649458,1.59673666,156.6,156.53,39.60551801]
[1727376650287,1.59673666,156.6,156.53,19.60551801]
[1727376650660,0.25098,156.61,156.53,19.60551801]
[1727376651081,0.25098,156.61,156.54,1.27743365]
[1727376651684,0.25098,156.61,156.54,21.27743365]
[1727376652398,24.027864,156.62,156.54,20.0]
[1727376652594,6.057,156.59,156.51,20.0]
[1727376652898,1.84806732,156.58,156.49,19.85646501]
[1727376654069,1.84806732,156.58,156.5,20.0]
[1727376654694,0.25098,156.58,156.52,20.0]
[1727376654901,0.25098,156.58,156.53,1.27759473]
[1727376656096,0.12549,156.58,156.52,20.0]
[1727376656391,0.12549,156.58,156.52,21.27754625]
[1727376656901,0.12549,156.58,156.52,20.0]
[1727376660179,1.847935,156.58,156.49,20.250947]
[1727376660524,24.027864,156.58,156.5,12.56319014]
[1727376660799,0.25098,156.56,156.51,20.0]
[1727376661293,1.59723007,156.55,156.51,20.0]
[1727376661498,0.25098,156.57,156.51,20.0]
[1727376662001,1.59720845,156.56,156.51,20.0]
[1727376662171,0.25098,156.57,156.51,20.0]
[1727376663280,0.25098,156.57,156.52,12.56319014]
[1727376663476,23.776884,156.58,156.52,12.56319014]
[1727376663477,0.12549,156.58,156.52,12.56319014]
[1727376663675,6.057,156.59,156.52,12.56319014]
[1727376663899,6.057,156.59,156.53,21.27760033]
[1727376664075,6.057,156.59,156.53,20.0]
[1727376664482,6.057,156.59,156.54,12.56319014]
[1727376665211,0.12549,156.58,156.54,12.56319014]
[1727376666202,6.057,156.59,156.54,12.56319014]
[1727376667415,1.59689914,156.58,156.54,12.56319014]
[1727376667786,1.59689899,156.57,156.49,0.250947]
[1727376667993,1.59689899,156.57,156.53,20.0]
[1727376668398,0.25098,156.56,156.49,0.250947]
[1727376668610,1.59724663,156.55,156.51,20.0]
[1727376669795,1.59724663,156.55,156.5,12.56319014]
[1727376669796,15.91558,156.54,156.49,0.250947]
[1727376670102,7.63453441,156.53,156.49,0.250947]
[1727376671692,15.6646,156.54,156.5,12.56319014]
[1727376672408,15.6646,156.54,156.49,0.250947]
[1727376673309,1.59732722,156.53,156.49,0.250947]
[1727376673908,15.6646,156.54,156.49,0.250947]
[1727376674528,15.6646,156.54,156.49,1.52879946]
[1727376674990,15.6646,156.54,156.49,0.250947]
[1727376675803,15.6646,156.54,156.5,20.0]
[1727376676207,6.037,156.57,156.51,1.27771721]
[1727376678099,6.037,156.57,156.5,20.0]
[1727376678788,6.037,156.57,156.51,1.27765336]
[1727376679215,6.037,156.57,156.51,20.90955857]
[1727376679714,6.037,156.57,156.52,20.0]
[1727376679910,7.63395498,156.57,156.52,20.0]
[1727376681904,0.25098,156.56,156.49,0.250947]
[1727376682087,1.5972958,156.55,156.49,0.250947]
[1727376684108,0.25098,156.56,156.49,0.250947]
[1727376692816,6.037,156.57,156.5,20.0]
[1727376693017,6.037,156.57,156.51,1.27774756]
[1727376693197,6.037,156.57,156.5,21.27771491]
[1727376693597,6.037,156.57,156.5,20.0]
[1727376694424,6.037,156.57,156.51,12.56148158]
[1727376696919,6.037,156.57,156.53,12.56148158]
[1727376697228,1.59704796,156.56,156.53,12.56148158]
[1727376697517,6.037,156.57,156.53,12.56148158]
[1727376697917,1.59706664,156.56,156.53,12.56148158]
[1727376698114,1.59706664,156.56,156.52,12.56148158]
[1727376699096,6.037,156.57,156.52,12.56148158]
[1727376699729,1.59700609,156.56,156.52,12.56148158]
[1727376700418,6.037,156.57,156.52,12.56148158]
[1727376700619,1.59700631,156.56,156.52,12.56148158]
[1727376701122,6.037,156.57,156.52,12.56148158]
[1727376701798,6.037,156.57,156.49,0.250947]
[1727376702003,6.037,156.57,156.52,12.56148158]
[1727376702004,1.5970796,156.56,156.52,12.56148158]
[1727376702212,6.037,156.57,156.52,12.56148158]
[1727376703524,6.037,156.57,156.49,20.250947]
[1727376703725,6.037,156.57,156.52,12.56148158]
[1727376704313,1.84819083,156.56,156.51,20.0]
[1727376704802,0.25098,156.56,156.51,20.0]
[1727376705801,0.25098,156.54,156.49,0.250947]
[1727376706013,17.37396143,156.53,156.49,0.250947]
[1727376710606,15.7765,156.53,156.49,0.250947]
[1727376711329,15.7765,156.53,156.49,12.81242858]
[1727376713129,22.2154,156.57,156.52,12.56148158]
[1727376714628,22.2154,156.57,156.53,12.56148158]
[1727376714835,22.2154,156.57,156.54,12.56148158]
[1727376716208,26.17306091,156.61,156.56,12.56148158]
[1727376716426,22.8279,156.61,156.59,12.56148158]
[1727376717009,26.42400791,156.65,156.6,12.56148158]
[1727376717310,23.078847,156.65,156.6,12.56148158]
[1727376717711,23.078847,156.65,156.62,12.56148158]
[1727376718022,0.250947,156.65,156.62,12.56148158]
[1727376719121,0.250947,156.65,156.53,5.4090747]
[1727376719320,0.250947,156.65,156.59,12.56148158]
[1727376719528,0.250947,156.65,156.6,20.0]
[1727376719715,1.84724902,156.65,156.6,20.0]
[1727376720120,0.250947,156.65,156.6,20.0]
[1727376720322,1.84724053,156.65,156.6,20.0]
[1727376720726,0.250947,156.65,156.6,20.0]
[1727376720927,1.84723561,156.65,156.6,20.0]
[1727376721441,8.23093561,156.65,156.58,20.0]
[1727376721760,1.84723561,156.65,156.6,20.0]
[1727376722423,1.84729122,156.65,156.6,20.0]
[1727376722627,1.84725679,156.65,156.6,20.0]
[1727376726342,0.250947,156.65,156.62,12.56148158]
[1727376727527,0.250947,156.65,156.64,12.56148158]
[1727376729034,0.250947,156.65,156.62,12.56148158]
[1727376732553,0.250947,156.65,156.58,16.5921]
[1727376732729,0.250947,156.65,156.6,12.56148158]
[1727376733056,1.84725436,156.65,156.6,12.56148158]
[1727376733245,1.84725436,156.65,156.58,12.56148158]
[1727376733436,0.25098,156.64,156.53,23.106]
[1727376733643,17.77484763,156.63,156.58,12.56148158]
[1727376734260,1.59658072,156.62,156.56,12.56148158]
[1727376736057,0.25098,156.62,156.56,12.56148158]
[1727376736569,0.25098,156.62,156.58,12.56148158]
[1727376736729,22.8279,156.63,156.58,12.56148158]
[1727376737545,1.59637718,156.62,156.58,12.56148158]
[1727376737741,22.8279,156.63,156.58,12.56148158]
[1727376737941,22.8279,156.63,156.51,24.027864]
[1727376737942,1.59635646,156.62,156.51,24.027864]
[1727376738143,1.59635646,156.62,156.58,12.56148158]
[1727376738453,22.8279,156.63,156.58,12.56148158]
[1727376738748,1.84730681,156.65,156.6,12.56148158]
[1727376740057,0.250947,156.65,156.62,12.56148158]
[1727376740428,0.250947,156.65,156.6,19.59991102]
[1727376741442,0.250947,156.65,156.61,20.0]
[1727376741640,0.250947,156.65,156.61,21.27684835]
[1727376741839,0.250947,156.65,156.61,20.0]
[1727376742039,0.250947,156.65,156.62,19.59991102]
[1727376743138,0.250947,156.65,156.61,20.0]
[1727376743450,0.250947,156.65,156.61,21.27686668]
[1727376744050,0.250947,156.65,156.61,20.0]
[1727376744867,0.250947,156.65,156.62,1.27686361]
[1727376745051,0.250947,156.65,156.61,20.0]
[1727376745838,0.250947,156.65,156.62,20.87668479]
[1727376746035,0.250947,156.65,156.62,19.59991102]
[1727376747156,0.250947,156.65,156.61,20.0]
[1727376748884,0.250947,156.65,156.64,19.59991102]
[1727376749167,0.250947,156.65,156.64,39.59991102]
[1727376749356,0.250947,156.65,156.62,19.59991102]
[1727376749558,0.250947,156.65,156.63,20.0]
[1727376749974,0.250947,156.65,156.6,19.59991102]
[1727376750153,0.250947,156.65,156.58,39.59991102]
[1727376750356,0.250947,156.65,156.6,19.59991102]
[1727376750670,0.250947,156.65,156.61,20.0]
[1727376750862,1.84694568,156.65,156.61,20.0]
[1727376752269,0.250947,156.65,156.61,20.0]
[1727376753270,0.250947,156.65,156.6,19.59991102]
[1727376753465,0.250947,156.65,156.58,43.37679502]
[1727376753782,0.250947,156.65,156.59,20.0]
[1727376755582,0.250947,156.65,156.6,1.276912]
[1727376755954,0.250947,156.65,156.61,1.27690739]
[1727376756149,0.250947,156.65,156.61,21.27690739]
[1727376756354,0.250947,156.65,156.61,20.0]
[1727376756793,0.250947,156.65,156.62,1.2768115]
[1727376757876,0.250947,156.65,156.61,20.0]
[1727376758078,0.250947,156.65,156.63,20.0]
[1727376760458,0.250947,156.65,156.63,32.54155541]
[1727376763269,0.250947,156.65,156.64,1.27658278]
[1727376764776,0.250947,156.65,156.64,43.776884]
[1727376765085,0.250947,156.65,156.64,45.17876443]
[1727376766360,0.250947,156.65,156.64,43.902374]
[1727376766764,0.250947,156.65,156.64,43.776884]
[1727376767474,0.250947,156.65,156.64,20.0]
[1727376767684,0.250947,156.65,156.64,32.54155541]
[1727376769272,0.250947,156.65,156.59,15.6084]
[1727376769471,0.250947,156.65,156.63,12.54155541]
[1727376771582,0.250947,156.65,156.61,12.54155541]
[1727376771770,0.250947,156.65,156.62,20.0]
[1727376772767,0.250947,156.65,156.63,1.27676653]
[1727376772969,0.250947,156.65,156.62,20.0]
[1727376773389,16.3231,156.64,156.57,12.54155541]
[1727376773580,1.59636448,156.63,156.57,12.54155541]
[1727376774470,16.3231,156.64,156.57,12.54155541]
[1727376774676,16.3231,156.64,156.51,23.776884]
[1727376774983,16.3231,156.64,156.57,12.54155541]
[1727376777364,16.3231,156.64,156.59,12.54155541]
[1727376777875,16.3231,156.64,156.59,13.81860585]
[1727376778276,16.3231,156.64,156.59,12.54155541]
[1727376779404,17.91926248,156.64,156.59,12.54155541]
[1727376779783,17.91926248,156.64,156.57,12.54155541]
[1727376780002,17.91926248,156.64,156.58,20.0]
[1727376782881,16.3231,156.64,156.58,20.0]
[1727376783103,17.91935357,156.64,156.58,20.0]
[1727376783301,16.3231,156.64,156.59,12.54155541]
[1727376783509,17.91935383,156.64,156.59,12.54155541]
[1727376784205,17.91935383,156.64,156.57,12.54155541]
[1727376784378,17.91935383,156.64,156.58,20.0]
[1727376785296,17.91935383,156.64,156.59,12.54155541]
[1727376785474,17.91935383,156.64,156.58,20.0]
[1727376787517,16.3231,156.64,156.58,20.0]
[1727376787702,17.91941925,156.64,156.58,20.0]
[1727376787886,1.5963217,156.63,156.58,20.0]
[1727376788085,16.3231,156.64,156.58,20.0]
[1727376788402,1.59631681,156.63,156.58,20.0]
[1727376789990,1.59631681,156.63,156.54,32.54155541]
[1727376790805,7.98081681,156.63,156.57,20.0]
[1727376796008,1.59631681,156.63,156.57,20.0]
[1727376796708,0.25098,156.62,156.57,20.0]
[1727376796910,1.59670048,156.61,156.56,20.0]
[1727376797113,1.59670048,156.61,156.55,20.0]
[1727376799017,6.3847,156.63,156.55,20.0]
[1727376799018,0.25098,156.63,156.56,12.54155541]
[1727376799211,0.25098,156.63,156.57,20.0]
[1727376800313,0.12549,156.63,156.57,20.0]
[1727376800614,1.59647418,156.63,156.57,20.0]
[1727376802100,16.3231,156.64,156.58,12.54155541]
[1727376802709,16.3231,156.64,156.59,20.0]
[1727376804716,16.3231,156.64,156.6,12.54155541]
[1727376805105,17.91936083,156.64,156.56,23.776884]
[1727376805305,17.91936083,156.64,156.57,32.54155541]
[1727376806705,17.91936083,156.64,156.57,20.0]
[1727376806910,17.91936083,156.64,156.57,32.54155541]
[1727376807721,16.3231,156.64,156.57,32.54155541]
[1727376808129,1.59631934,156.63,156.57,32.54155541]
[1727376808922,16.3231,156.64,156.57,32.54155541]
[1727376810214,1.5963206,156.63,156.57,32.54155541]
[1727376810524,16.3231,156.64,156.59,12.54155541]
[1727376810699,16.3231,156.64,156.6,1.27705601]
[1727376810905,1.596253,156.63,156.57,20.0]
[1727376811232,16.3231,156.64,156.59,12.54155541]
[1727376813500,16.3231,156.64,156.61,12.54155541]
[1727376814402,6.686447,156.65,156.63,12.54155541]
[1727376816196,6.686447,156.65,156.6,20.0]
[1727376816418,6.686447,156.65,156.62,12.54155541]
[1727376818720,6.686447,156.65,156.63,13.81835721]
[1727376818911,0.250947,156.65,156.63,12.54155541]
[1727376819929,0.250947,156.65,156.64,21.27659884]
[1727376820225,0.250947,156.65,156.64,57.59503825]
[1727376820523,0.250947,156.65,156.64,56.31843941]
[1727376822626,0.250947,156.65,156.64,56.44392941]
[1727376822829,0.250947,156.65,156.64,56.31843941]
[1727376823437,0.250947,156.65,156.64,56.44392941]
[1727376823940,0.0458906,156.67,156.64,56.56941941]
[1727376824109,0.0458906,156.67,156.66,56.31843941]
[1727376824931,0.0458906,156.67,156.62,0.12549]
[1727376825229,0.0458906,156.67,156.66,56.31843941]
[1727376825439,0.250947,156.7,156.66,56.44392941]
[1727376825637,0.250947,156.7,156.69,12.54155541]
[1727376825949,0.080647,156.73,156.7,20.0]
[1727376826117,0.080647,156.73,156.72,12.54155541]
[1727376826436,0.080647,156.73,156.72,56.31843941]
[1727376827844,0.080647,156.73,156.72,56.44392941]
[1727376828635,0.080647,156.73,156.72,56.56941941]
[1727376829936,0.370736,156.76,156.73,44.027864]
[1727376830243,0.370736,156.76,156.75,56.44392941]
[1727376830720,0.370736,156.76,156.75,56.56941941]
[1727376832247,0.370736,156.76,156.75,56.44392941]
[1727376835711,0.370736,156.76,156.75,56.56941941]
[1727376836615,0.250947,156.79,156.78,20.0]
[1727376837240,0.250947,156.79,156.75,43.776884]
[1727376838045,0.250947,156.79,156.72,20.0]
[1727376839242,0.250947,156.79,156.71,12.54155541]
[1727376839548,0.250947,156.79,156.73,12.54155541]
[1727376840051,0.250947,156.79,156.71,12.54155541]
[1727376840250,0.250947,156.79,156.73,20.0]
[1727376841351,1.59463074,156.78,156.69,12.54155541]
[1727376841523,0.250947,156.79,156.69,12.54155541]
[1727376841837,1.84567715,156.79,156.67,20.0]
[1727376842017,1.84567715,156.79,156.7,12.54155541]
[1727376842018,0.250947,156.79,156.7,12.54155541]
[1727376842222,1.84574264,156.79,156.7,12.54155541]
[1727376842426,0.250947,156.79,156.7,12.54155541]
[1727376842632,0.250947,156.79,156.71,43.776884]
[1727376843132,1.84569865,156.79,156.71,20.0]
[1727376843330,1.84569865,156.79,156.7,20.0]
[1727376844253,0.250947,156.79,156.7,20.0]
[1727376844628,1.84576036,156.79,156.7,20.0]
[1727376845632,0.250947,156.79,156.7,20.0]
[1727376845951,0.250947,156.79,156.72,20.0]
[1727376846157,0.250947,156.79,156.73,1.27580345]
[1727376846337,0.250947,156.79,156.72,20.0]
[1727376847059,0.250947,156.79,156.73,1.27580975]
[1727376847352,0.250947,156.79,156.72,20.0]
[1727376859848,15.1783,156.78,156.66,1.57484794]
[1727376860049,15.1783,156.78,156.68,12.54155541]
[1727376861182,15.1783,156.78,156.69,20.0]
[1727376862587,16.77318899,156.78,156.69,20.0]
[1727376863263,15.1783,156.76,156.66,12.54155541]
[1727376863467,15.1783,156.76,156.68,12.54155541]
[1727376863785,15.1783,156.76,156.7,12.54155541]
[1727376863980,15.1783,156.76,156.71,13.81739805]
[1727376864170,15.1783,156.76,156.72,13.81736536]
[1727376864584,15.1783,156.76,156.73,21.27575787]
[1727376864983,0.250947,156.79,156.75,20.0]
[1727376865294,0.250947,156.79,156.76,1.27547373]
[1727376866586,0.250947,156.79,156.75,32.54155541]
[1727376866903,0.250947,156.79,156.75,20.0]
[1727376867395,0.250947,156.79,156.76,1.27549542]
[1727376867682,0.250947,156.79,156.75,20.0]
[1727376868292,0.250947,156.79,156.76,37.59393508]
[1727376868471,0.250947,156.79,156.77,20.0]
[1727376868679,0.250947,156.79,156.78,1.27545778]
[1727376869068,0.250947,156.79,156.77,20.0]
[1727376869890,0.250947,156.79,156.77,32.54155541]
[1727376871921,0.250947,156.79,156.78,33.81698323]
[1727376872199,0.250947,156.79,156.78,56.31843941]
[1727376872493,0.250947,156.79,156.78,56.44392941]
[1727376873377,0.250947,156.79,156.78,56.56941941]
[1727376875299,0.080647,156.82,156.79,44.027864]
[1727376875467,0.080647,156.82,156.81,32.54155541]
[1727376875668,0.080647,156.82,156.81,56.56941941]
[1727376878287,0.250947,156.84,156.82,44.027864]
[1727376878474,0.250947,156.84,156.83,57.84410084]
[1727376879692,0.250947,156.84,156.83,56.56941941]
[1727376882396,0.250947,156.84,156.83,56.06941941]
[1727376883478,0.119789,156.86,156.84,44.027864]
[1727376883679,0.119789,156.86,156.85,57.84394688]
[1727376883869,0.119789,156.86,156.85,56.56941941]
[1727376884977,0.119789,156.86,156.85,57.84378081]
[1727376885587,0.250947,156.89,156.86,44.027864]
[1727376885880,0.250947,156.89,156.88,56.56941941]
[1727376887379,0.250947,156.89,156.88,44.027864]
[1727376887599,0.250947,156.89,156.88,56.56941941]
[1727376887808,0.080647,156.91,156.88,72.68271941]
[1727376888002,0.080647,156.91,156.9,56.56941941]
[1727376889400,0.119789,156.95,156.93,20.0]
[1727376889612,0.119789,156.95,156.94,57.84319089]
[1727376889812,0.119789,156.95,156.94,56.56941941]
[1727376890302,22.5617,157.02,156.96,0.12549]
[1727376890492,22.5617,157.02,157.0,20.0]
[1727376890493,23.0384032,157.02,157.0,20.0]
[1727376891204,23.0384032,157.02,157.01,1.27364724]
[1727376891580,23.0384032,157.02,156.97,12.54155541]
[1727376891581,23.0384032,157.02,156.98,43.776884]
[1727376891919,23.0384032,157.02,156.98,56.31843941]
[1727376893707,23.0384032,157.02,157.0,20.0]
[1727376894187,23.0384032,157.02,156.99,20.0]
[1727376896512,23.0384032,157.02,157.0,1.27368456]
[1727376896805,23.0384032,157.02,156.99,20.0]
[1727376897597,23.0384032,157.02,156.98,12.54155541]
[1727376897794,23.0384032,157.02,157.0,1.27366845]
[1727376898111,23.0384032,157.02,157.01,1.27367663]
[1727376898613,23.0384032,157.02,157.0,12.54155541]
[1727376898915,23.0384032,157.02,157.0,20.0]
[1727376899210,23.0384032,157.02,156.97,20.0]
[1727376899418,23.0384032,157.02,156.97,32.54155541]
[1727376900618,23.0384032,157.02,156.89,1.62422842]
[1727376900787,23.0384032,157.02,156.94,12.54155541]
[1727376901113,23.0384032,157.02,156.88,22.3151]
[1727376901114,23.0384032,157.02,156.95,12.54155541]
[1727376901291,23.0384032,157.02,156.94,12.54155541]
[1727376901495,23.0384032,157.02,156.96,12.54155541]
[1727376901891,23.0384032,157.02,156.97,20.0]
[1727376902993,23.0384032,157.02,156.88,23.93167299]
[1727376902994,6.3705,156.98,156.88,1.61657299]
[1727376903308,0.4767032,157.02,156.9,12.54155541]
[1727376903309,22.4169,156.97,156.9,12.54155541]
[1727376904287,22.4169,156.97,156.9,20.0]
[1727376904789,6.3712,156.96,156.84,16.0245]
[1727376904991,6.3711,156.96,156.84,16.0245]
[1727376905308,22.4169,156.97,156.84,28.56605541]
[1727376905510,22.4169,156.97,156.83,12.54155541]
[1727376905511,6.3718,156.94,156.83,12.54155541]
[1727376905820,6.3739,156.89,156.79,1.85787573]
[1727376906108,22.4169,156.92,156.79,0.2995386]
[1727376906109,0.12549,156.91,156.79,0.2995386]
[1727376906285,6.3738,156.9,156.79,0.2995386]
[1727376906492,7.96763043,156.89,156.79,0.2995386]
[1727376906722,6.3751,156.86,156.79,0.2995386]
[1727376906883,22.4169,156.9,156.79,0.2995386]
[1727376907090,28.7904,156.9,156.79,0.2995386]
[1727376907517,22.4169,156.9,156.79,0.2995386]
[1727376907719,6.3743,156.88,156.79,0.2995386]
[1727376908494,7.9684526,156.87,156.79,0.2995386]
[1727376908812,1.59390413,156.87,156.79,0.2995386]
[1727376909115,6.3743,156.88,156.79,0.2995386]
[1727376910106,22.4169,156.9,156.81,23.902374]
[1727376910320,22.4169,156.9,156.84,20.0]
[1727376910820,22.4169,156.9,156.85,1.27472616]
[1727376911603,22.4169,156.9,156.85,23.776884]
[1727376912297,22.4169,156.9,156.8,0.25098]
[1727376912690,22.4169,156.9,156.82,23.902374]
[1727376912890,22.4169,156.9,156.82,23.776884]
[1727376913723,22.4169,156.9,156.83,1.27483927]
[1727376914320,22.4169,156.9,156.85,20.0]
[1727376914518,22.4169,156.9,156.86,1.27472427]
[1727376914928,22.4169,156.9,156.85,20.0]
[1727376915513,22.4169,156.9,156.86,1.27474075]
[1727376915900,22.4169,156.9,156.85,20.0]
[1727376916325,22.4169,156.9,156.84,23.776884]
[1727376918017,22.4169,156.9,156.81,20.0]
[1727376918196,22.4169,156.9,156.82,23.902374]
[1727376922413,22.4169,156.9,156.81,20.0]
[1727376922616,22.4169,156.9,156.83,1.27474799]
[1727376923496,22.4169,156.9,156.81,20.0]
[1727376923700,22.4169,156.9,156.82,23.902374]
[1727376924295,22.4169,156.9,156.82,23.776884]
[1727376924498,1.59359837,156.89,156.79,0.2995386]
[1727376925100,6.5051,156.86,156.79,0.2995386]
[1727376925299,14.47415195,156.86,156.79,0.2995386]
[1727376925620,8.09905195,156.86,156.79,0.2995386]
[1727376926507,6.5051,156.86,156.79,0.2995386]
[1727376926701,6.5051,156.86,156.8,1.27518192]
[1727376927024,6.5051,156.86,156.79,0.2995386]
[1727376927799,0.12549,156.84,156.79,0.2995386]
[1727376928020,1.59451248,156.83,156.79,0.2995386]
[1727376928325,6.3771,156.81,156.79,0.2995386]
[1727376928527,16.3295,156.81,156.79,0.2995386]
[1727376928822,1.59454616,156.8,156.79,0.2995386]
[1727376931021,16.3295,156.81,156.79,0.2995386]
[1727376932723,16.3295,156.81,156.73,23.902374]
[1727376933114,16.3295,156.81,156.73,0.12549]
[1727376933507,16.3295,156.81,156.74,1.27558731]
[1727376934205,16.3295,156.81,156.73,0.12549]
[1727376936123,16.3295,156.81,156.73,0.25098]
[1727376938409,16.3295,156.81,156.75,23.902374]
[1727376944009,16.3295,156.81,156.75,23.776884]
[1727376945119,1.59447463,156.8,156.72,0.267125]
[1727376945313,16.3295,156.81,156.72,0.267125]
[1727376946227,16.3295,156.81,156.73,1.27552178]
[1727376946430,16.3295,156.81,156.74,0.12549]
[1727376946632,16.3295,156.81,156.74,24.027864]
[1727376948447,6.5051,156.83,156.76,23.776884]
[1727376948621,6.5051,156.83,156.79,20.0]
[1727376948824,15.5676,156.85,156.81,23.776884]
[1727376949338,15.5676,156.85,156.8,23.902374]
[1727376949543,15.5676,156.85,156.8,23.776884]
[1727376949747,15.5676,156.85,156.79,20.0]
[1727376950037,15.5676,156.85,156.78,23.776884]
[1727376950541,1.59409263,156.84,156.78,23.776884]
[1727376950707,1.59409263,156.84,156.75,20.25098]
[1727376950909,1.59409263,156.84,156.75,0.25098]
[1727376951339,1.59409263,156.84,156.76,20.0]
[1727376952842,15.5676,156.85,156.76,20.0]
[1727376955035,6.3382,156.83,156.76,20.0]
[1727376955236,1.59437104,156.82,156.75,23.776884]
[1727376955436,1.59437104,156.82,156.73,0.25098]
[1727376955634,1.59437104,156.82,156.74,20.0]
[1727376956122,15.5676,156.81,156.73,23.902374]
[1727376956311,1.59456876,156.8,156.73,23.776884]
[1727376956515,1.59456876,156.8,156.72,0.354062]
[1727376959130,1.59456876,156.8,156.72,20.354062]
[1727376959330,6.3382,156.79,156.72,20.354062]
[1727376959517,1.59486322,156.78,156.72,20.354062]
[1727376959845,1.59486322,156.78,156.72,0.354062]
[1727376962332,6.3382,156.79,156.73,1.27586666]
[1727376962655,6.3382,156.79,156.72,0.354062]
[1727376962852,6.3382,156.79,156.73,1.27580799]
[1727376963157,6.3382,156.79,156.74,1.27580799]
[1727376963458,6.3382,156.79,156.75,23.776884]
[1727376963748,6.3382,156.79,156.74,23.902374]
[1727376967357,6.3382,156.79,156.75,1.27549794]
[1727376968055,6.3382,156.79,156.74,43.46301552]
[1727376969047,6.3382,156.79,156.74,23.776884]
[1727376969346,6.3382,156.79,156.73,20.0]
[1727376969546,6.3382,156.79,156.72,0.354062]
[1727376969746,1.59467761,156.78,156.72,0.354062]
[1727376970848,6.3382,156.79,156.72,0.354062]
[1727376971032,1.59484405,156.78,156.72,0.354062]
[1727376978439,16.389,156.77,156.72,0.354062]
[1727376978759,1.5950205,156.76,156.72,0.354062]
[1727376980435,16.389,156.77,156.72,0.354062]
[1727376980635,1.59501834,156.76,156.72,0.354062]
[1727376981859,30.0,156.74,156.72,0.354062]
[1727376982754,30.0,156.75,156.72,0.354062]
[1727376984059,16.389,156.77,156.72,0.354062]
[1727376985369,1.5949444,156.76,156.72,0.354062]
[1727376988060,16.389,156.77,156.72,0.354062]
[1727376988734,1.59498384,156.76,156.72,0.354062]
[1727376989239,16.389,156.77,156.72,0.354062]
[1727376990770,1.59504668,156.76,156.72,0.354062]
[1727376991742,16.389,156.77,156.72,0.354062]
[1727376993563,1.59504687,156.76,156.72,0.354062]
[1727376995369,16.389,156.77,156.72,0.354062]
[1727377007179,6.67518811,156.8,156.74,12.53436279]
[1727377007351,6.67518811,156.8,156.78,12.53436279]
[1727377007680,3.31238521,156.86,156.79,13.80988935]
[1727377007876,3.31238521,156.86,156.74,6.1174]
[1727377007877,26.38118521,156.87,156.8,13.80970439]
[1727377008377,23.0688,156.87,156.8,13.80970439]
[1727377008883,23.0688,156.87,156.81,1.27520103]
[1727377009676,23.0688,156.87,156.81,1.27521848]
[1727377010070,23.0688,156.87,156.8,12.53436279]
[1727377011656,6.91682718,156.9,156.81,1.52622504]
[1727377011991,6.91682718,156.9,156.86,12.53436279]
[1727377011992,0.24537663,156.9,156.86,12.53436279]
[1727377012277,0.11239463,156.9,156.87,1.27480687]
[1727377012478,0.11239463,156.9,156.86,12.53436279]
[1727377013276,0.11239463,156.9,156.89,12.53436279]
[1727377014455,0.11239463,156.9,156.89,36.31124679]
[1727377015184,0.11239463,156.9,156.89,12.53436279]
[1727377015756,0.11239463,156.9,156.86,20.0]